bitfinex-derivatives/quotes_ETHF0:USTF0_20240924
["timestamp","ask_amount","ask_price","bid_price","bid_amount"]
[1727136685760,0.37757,2648.6,2648.3,0.37761]
[1727136686363,0.37761,2648.3,2648.2,3.2078]
[1727136686560,1.4817905,2648.4,2648.2,3.2078]
[1727136686764,2.19371408,2648.4,2648.2,3.2078]
[1727136687065,1.8594005,2648.3,2648.2,3.2078]
[1727136688672,1.4817905,2648.3,2648.2,3.2078]
[1727136689272,2.3824005,2648.4,2648.2,3.2078]
[1727136690169,0.37761,2648.3,2648.2,3.2078]
[1727136691562,2.0047905,2648.4,2647.9,5.37766]
[1727136691563,0.37763,2648.2,2647.9,5.37766]
[1727136691764,1.8594105,2648.3,2648.0,0.37765]
[1727136692069,1.4817905,2648.3,2647.9,5.0]
[1727136692270,0.37766,2648.0,2647.9,5.0]
[1727136692472,3.59415,2648.1,2647.3,3.7341]
[1727136692767,3.59415,2648.1,2647.6,0.37771]
[1727136692768,2.9033705,2647.9,2647.6,0.37771]
[1727136693072,2.9033705,2647.9,2647.7,5.0]
[1727136693275,0.37769,2647.8,2647.7,5.0]
[1727136695567,2.9033705,2647.9,2647.7,5.0]
[1727136696480,0.37769,2647.8,2647.7,5.0]
[1727136696963,1.8594805,2647.8,2647.7,5.0]
[1727136697163,0.37769,2647.8,2647.7,5.0]
[1727136697371,1.8594805,2647.8,2647.7,5.0]
[1727136698174,2.04844249,2647.8,2647.7,5.0]
[1727136698375,0.37774,2647.4,2647.2,3.2078]
[1727136698571,1.1224,2647.3,2647.2,3.2078]
[1727136698879,9.14357278,2647.3,2647.2,5.0]
[1727136699080,0.37782,2646.9,2646.5,0.088]
[1727136699278,1.48125615,2646.9,2646.6,0.37785]
[1727136699482,1.85907615,2646.9,2646.6,0.37785]
[1727136699671,2.43357615,2646.9,2646.6,0.37785]
[1727136699981,2.43357615,2646.9,2646.7,3.3]
[1727136701173,2.43357615,2646.9,2646.5,0.37787]
[1727136701482,0.95232,2646.9,2646.5,0.37787]
[1727136701779,0.95232,2646.9,2646.6,3.3]
[1727136705091,0.95232,2646.9,2646.6,3.67786]
[1727136705272,0.95232,2646.9,2646.6,3.3]
[1727136705477,0.95232,2646.9,2646.6,3.67785]
[1727136705975,0.37784,2646.7,2646.6,3.3]
[1727136706381,0.94334,2646.8,2646.6,3.3]
[1727136707482,0.5655,2646.8,2646.6,3.3]
[1727136707697,0.94334,2646.8,2646.6,3.3]
[1727136711183,0.94334,2646.8,2646.5,0.37787]
[1727136712182,0.94334,2646.8,2646.6,3.2]
[1727136713081,3.2078,2647.0,2646.6,3.2]
[1727136713283,3.2078,2647.0,2646.7,0.5202]
[1727136713589,3.2078,2647.0,2646.9,0.37781]
[1727136713791,3.2078,2647.0,2646.8,0.92182]
[1727136713993,3.2078,2647.0,2646.9,0.5519]
[1727136714499,3.5856,2647.0,2646.9,0.5519]
[1727136714988,0.37781,2646.9,2646.8,0.544]
[1727136715191,0.90621,2646.9,2646.8,0.544]
[1727136716093,3.58561,2647.0,2646.8,0.544]
[1727136716287,3.2078,2647.0,2646.8,0.92183]
[1727136717094,3.5856,2647.0,2646.8,0.92183]
[1727136717294,3.5856,2647.0,2646.8,0.544]
[1727136719102,0.37781,2646.9,2646.8,0.544]
[1727136719606,0.37784,2646.8,2646.6,3.7519]
[1727136719805,0.95304,2646.8,2646.6,3.7519]
[1727136720499,0.37782,2646.9,2646.7,0.37784]
[1727136720694,3.58561,2647.0,2646.7,0.37784]
[1727136721198,0.37783,2646.8,2646.6,4.12975]
[1727136721501,0.37782,2646.9,2646.7,0.37784]
[1727136721691,3.2078,2647.0,2646.6,4.12975]
[1727136721892,0.37783,2646.9,2646.6,4.12975]
[1727136722298,3.2078,2647.0,2646.7,0.37783]
[1727136722598,3.2078,2647.0,2646.9,0.37781]
[1727136723689,3.2078,2647.0,2646.9,4.15541]
[1727136725199,3.5856,2647.0,2646.7,0.37784]
[1727136725393,3.5856,2647.0,2646.6,3.7519]
[1727136725394,0.37783,2646.8,2646.6,3.7519]
[1727136725599,0.37784,2646.7,2646.6,3.7519]
[1727136725901,0.37784,2646.8,2646.6,3.7519]
[1727136726204,0.37784,2646.7,2646.6,3.7519]
[1727136726595,3.02784,2646.7,2646.6,3.7519]
[1727136727093,3.02784,2646.7,2646.6,0.5519]
[1727136727612,0.37787,2646.5,2646.4,0.5493]
[1727136728802,0.37789,2646.4,2646.3,3.7281]
[1727136729101,3.2067,2646.5,2646.3,3.7281]
[1727136729605,0.37789,2646.4,2646.3,3.7281]
[1727136730399,0.37789,2646.4,2646.3,3.2]
[1727136731004,0.37791,2646.2,2646.1,1.0593]
[1727136731400,0.37791,2646.2,2646.1,4.2593]
[1727136731897,0.37793,2646.1,2646.0,0.5372]
[1727136732292,0.37794,2646.0,2645.9,5.16096608]
[1727136732800,0.37794,2646.1,2645.9,5.16096608]
[1727136733003,0.37794,2646.0,2645.9,5.16096608]
[1727136733208,0.37794,2646.1,2645.9,5.16096608]
[1727136734605,3.02794,2646.0,2645.7,0.5551]
[1727136734810,4.11874,2646.0,2645.7,0.5551]
[1727136735010,0.37796,2645.9,2645.7,0.5551]
[1727136735701,4.11876,2646.0,2645.7,0.93308]
[1727136735897,4.11876,2646.0,2645.7,0.83198]
[1727136737306,0.37796,2645.9,2645.7,0.454]
[1727136737904,0.37796,2645.9,2645.8,3.2]
[1727136738102,0.37799,2645.7,2645.6,1.0774]
[1727136738611,0.37799,2645.7,2645.6,4.2774]
[1727136739117,0.37797,2645.8,2645.6,4.2774]
[1727136739314,5.22205615,2646.0,2645.6,4.2774]
[1727136739517,5.22205615,2646.0,2645.7,0.5121]
[1727136739711,0.37797,2645.8,2645.7,0.5121]
[1727136740415,5.22205615,2646.0,2645.7,0.5121]
[1727136740416,0.37796,2645.9,2645.7,0.5121]
[1727136740710,5.06698615,2646.1,2645.9,0.37796]
[1727136740910,1.85917615,2646.2,2646.0,0.37794]
[1727136741109,2.02735615,2646.3,2646.1,0.541]
[1727136741410,1.85915615,2646.4,2646.2,1.41461]
[1727136741910,1.85915615,2646.4,2646.2,1.0367]
[1727136741911,0.3779,2646.3,2646.2,1.0367]
[1727136742106,1.85914615,2646.4,2646.2,1.0367]
[1727136742306,0.3779,2646.3,2646.2,1.0367]
[1727136742520,1.48125615,2646.3,2646.2,0.5217]
[1727136742814,1.85915615,2646.3,2646.2,0.5217]
[1727136743012,2.04822384,2646.3,2646.2,0.5217]
[1727136743407,0.56696769,2646.3,2646.2,0.5217]
[1727136744113,1.08566769,2646.3,2646.1,0.541]
[1727136744307,1.48208854,2646.2,2646.1,0.541]
[1727136744713,2.04907434,2646.2,2646.1,0.541]
[1727136744924,0.5669858,2646.2,2646.0,0.5418]
[1727136745215,0.37793,2646.1,2645.8,1.41617]
[1727136745420,1.48262512,2646.0,2645.9,0.37796]
[1727136746519,1.48262512,2646.2,2646.1,0.37793]
[1727136746716,2.3528982,2646.4,2646.2,0.37791]
[1727136746717,1.48262512,2646.3,2646.2,0.37791]
[1727136747518,1.48262512,2646.3,2646.2,7.36491]
[1727136747716,1.48262512,2646.5,2646.2,6.987]
[1727136748018,1.48262512,2646.6,2646.5,0.37787]
[1727136750015,1.67166794,2646.6,2646.5,0.37787]
[1727136750819,1.67166794,2646.6,2646.5,3.02787]
[1727136751024,5.67656025,2646.9,2646.5,12.4284]
[1727136751025,3.2078,2646.9,2646.5,12.4284]
[1727136751221,3.2078,2646.9,2646.8,3.02783]
[1727136751518,3.2078,2646.9,2646.8,13.19223]
[1727136751711,3.2078,2646.9,2646.8,10.54223]
[1727136751911,3.2078,2646.9,2646.8,3.2]
[1727136752117,3.58561,2646.9,2646.8,3.2]
[1727136752419,3.77464499,2646.9,2646.8,3.2]
[1727136752817,3.77464499,2646.9,2646.4,3.186]
[1727136752818,0.37784,2646.8,2646.4,3.186]
[1727136753018,0.37785,2646.7,2646.3,0.5494]
[1727136753318,0.37785,2646.7,2646.4,3.2]
[1727136753319,0.93105,2646.7,2646.4,3.2]
[1727136753907,0.5532,2646.7,2646.4,3.2]
[1727136754714,0.93105,2646.7,2646.4,3.2]
[1727136755314,0.37786,2646.6,2646.4,3.2]
[1727136755524,0.37787,2646.5,2646.4,3.2]
[1727136756025,1.09823598,2646.5,2646.4,3.2]
[1727136756415,1.09823598,2646.5,2646.2,0.5584]
[1727136756725,0.5313,2646.5,2646.2,0.5584]
[1727136756919,0.90918,2646.5,2646.2,0.5584]
[1727136757622,0.3779,2646.3,2646.2,0.5584]
[1727136757816,0.3779,2646.3,2645.9,3.7651]
[1727136758022,0.5664,2646.2,2645.9,4.14305]
[1727136758223,0.5664,2646.2,2646.0,3.2]
[1727136758920,0.94433,2646.2,2646.0,3.2]
[1727136759116,2.9193382,2646.2,2646.0,3.2]
[1727136759312,0.18908531,2646.1,2646.0,3.2]
[1727136759718,0.18908531,2646.1,2645.9,3.7651]
[1727136759919,2.9193382,2646.2,2645.9,3.7651]
[1727136760120,0.74418885,2646.1,2645.9,3.7651]
[1727136760318,0.37794,2646.0,2645.9,3.2078]
[1727136760518,0.18909503,2646.0,2645.9,3.2078]
[1727136761631,0.56703503,2646.0,2645.9,3.2078]
[1727136762724,0.18909503,2646.0,2645.9,3.2078]
[1727136762919,7.17609503,2646.0,2645.7,0.5202]
[1727136763115,0.37799,2645.7,2645.6,0.5459]
[1727136763319,3.77489915,2645.7,2645.4,0.5202]
[1727136763518,1.08262364,2645.6,2645.4,3.7202]
[1727136763821,0.8935,2645.6,2645.4,3.7202]
[1727136764125,0.37801,2645.5,2645.4,3.2]
[1727136764426,0.37801,2645.5,2645.2,0.5654]
[1727136764427,0.89391,2645.5,2645.2,0.5654]
[1727136766530,0.37803,2645.4,2645.2,0.5654]
[1727136766829,0.37803,2645.4,2645.1,3.7211]
[1727136767022,0.94103,2645.4,2645.1,3.7211]
[1727136767220,0.94103,2645.4,2645.1,4.09917]
[1727136767425,0.563,2645.4,2645.1,4.09917]
[1727136767925,0.94103,2645.4,2645.1,4.09917]
[1727136768127,0.563,2645.4,2645.1,3.7211]
[1727136768326,0.89351,2645.6,2645.2,0.37805]
[1727136768524,0.37801,2645.5,2645.3,0.5465]
[1727136768928,0.89351,2645.6,2645.3,0.5465]
[1727136769234,0.37801,2645.5,2645.3,0.5465]
[1727136770727,0.5155,2645.6,2645.4,0.37802]
[1727136771025,0.37799,2645.7,2645.4,3.02802]
[1727136771337,0.5396,2645.8,2645.4,3.02802]
[1727136771338,0.378,2645.6,2645.4,3.02802]
[1727136772718,0.378,2645.7,2645.5,0.37801]
[1727136772922,1.0982,2645.8,2645.4,2.65]
[1727136772923,0.5586,2645.8,2645.6,0.5124]
[1727136773123,0.5586,2645.8,2645.7,0.5194]
[1727136773325,0.5586,2645.8,2645.7,0.89739]
[1727136775125,0.93657,2645.8,2645.7,0.89739]
[1727136775527,0.5586,2645.8,2645.7,0.89739]
[1727136776229,2.3529582,2646.0,2645.8,0.37796]
[1727136776434,0.18910325,2645.9,2645.8,0.37796]
[1727136776631,0.98792912,2645.9,2645.8,0.37796]
[1727136776825,1.36586912,2646.0,2645.8,0.37796]
[1727136777222,0.98792912,2645.9,2645.8,0.37796]
[1727136778631,1.36588912,2645.9,2645.8,0.37796]
[1727136778829,0.37796,2645.9,2645.8,0.37796]
[1727136779034,0.37796,2645.9,2645.8,3.2078]
[1727136779235,1.36588912,2645.9,2645.8,3.2078]
[1727136780540,0.37796,2645.9,2645.8,3.2078]
[1727136780738,1.36587912,2646.0,2645.8,3.58576]
[1727136781031,0.37796,2645.9,2645.8,3.58576]
[1727136781427,1.36587912,2646.0,2645.8,3.58576]
[1727136782030,1.36588912,2645.9,2645.8,3.2078]
[1727136782229,0.98792912,2645.9,2645.8,3.58577]
[1727136784442,1.36588912,2645.9,2645.8,3.2078]
[1727136784747,0.98792912,2645.9,2645.8,3.58577]
[1727136784943,0.98792912,2646.0,2645.9,0.37796]
[1727136786243,1.36586912,2646.0,2645.9,0.37796]
[1727136786439,0.98792912,2646.0,2645.9,0.37796]
[1727136787545,1.36585912,2646.1,2645.9,0.37796]
[1727136787846,0.98792912,2646.0,2645.9,0.37796]
[1727136788143,1.36585912,2646.1,2645.9,0.37796]
[1727136788343,0.98792912,2646.0,2645.9,0.37796]
[1727136789131,0.98792912,2646.1,2645.9,0.37796]
[1727136789339,0.98792912,2646.1,2646.0,0.37794]
[1727136789541,2.4604082,2646.3,2646.2,0.37791]
[1727136789542,1.47332912,2646.3,2646.2,0.37791]
[1727136789742,1.9750082,2646.5,2646.4,0.37789]
[1727136790050,0.37786,2646.6,2646.4,2.65]
[1727136790051,0.98774161,2646.6,2646.4,2.65]
[1727136790239,0.98774161,2646.7,2646.6,0.37786]
[1727136790434,0.98774161,2646.7,2646.6,0.88496]
[1727136790738,0.98774161,2646.8,2646.7,0.37784]
[1727136792847,0.98774161,2646.8,2646.6,0.88495]
[1727136793250,1.52264161,2646.8,2646.6,0.88495]
[1727136793448,1.52264161,2646.8,2646.7,0.37784]
[1727136795540,0.5349,2646.8,2646.7,0.37784]
[1727136796341,0.98774161,2646.9,2646.8,0.37783]
[1727136798149,8.8510082,2647.1,2646.6,0.5071]
[1727136798338,1.51668341,2646.8,2646.7,0.37784]
[1727136799255,0.5297,2646.8,2646.7,0.37784]
[1727136799556,1.51668341,2646.8,2646.7,0.37784]
[1727136799745,0.5297,2646.8,2646.7,0.37784]
[1727136803447,0.98698341,2647.0,2646.9,0.37781]
[1727136803651,0.98698341,2647.0,2646.9,1.32235]
[1727136803855,3.2078,2647.1,2647.0,0.3778]
[1727136804059,3.2078,2647.1,2647.0,6.8054]
[1727136805558,3.2078,2647.1,2647.0,4.1554]
[1727136807156,3.2078,2647.1,2647.0,3.7776]
[1727136807558,3.2078,2647.1,2646.9,0.4961]
[1727136808862,3.58559,2647.1,2646.9,0.4961]
[1727136809047,0.9059,2647.0,2646.6,3.1571]
[1727136809250,1.9185,2647.0,2646.6,3.1571]
[1727136809447,1.5407,2647.0,2646.6,3.1571]
[1727136810051,0.37782,2646.9,2646.6,3.199]
[1727136810262,1.5407,2647.0,2646.6,3.199]
[1727136810562,0.37782,2646.9,2646.6,3.199]
[1727136812157,1.5407,2647.0,2646.6,3.199]
[1727136812359,0.37782,2646.9,2646.6,3.199]
[1727136814465,1.5407,2647.0,2646.6,3.199]
[1727136814761,0.37783,2646.8,2646.6,3.199]
[1727136814960,2.52768341,2647.0,2646.6,3.199]
[1727136815359,0.37784,2646.8,2646.6,3.199]
[1727136816257,1.09368341,2646.9,2646.5,0.5003]
[1727136816459,0.37787,2646.5,2646.4,3.2]
[1727136817561,1.37597,2646.5,2646.4,3.2]
[1727136819165,1.37597,2646.5,2646.2,2.65]
[1727136819166,5.19288341,2646.5,2646.1,0.4835]
[1727136819467,0.98698341,2646.3,2646.1,0.4835]
[1727136819664,0.37791,2646.3,2646.1,3.6835]
[1727136820058,0.37791,2646.2,2646.1,3.6835]
[1727136820559,0.37791,2646.2,2646.0,2.65]
[1727136820768,0.4957,2646.1,2646.0,2.65]
[1727136820963,0.4957,2646.1,2646.0,5.85]
[1727136821673,0.87363,2646.1,2646.0,3.2]
[1727136821874,1.86061341,2646.1,2646.0,3.2]
[1727136822570,1.86061341,2646.1,2645.8,3.7098]
[1727136822966,1.86061341,2646.1,2645.8,9.5598]
[1727136823165,1.86061341,2646.1,2645.9,0.4936]
[1727136823467,1.47852687,2646.2,2645.9,0.4936]
[1727136823468,0.98698341,2646.2,2646.1,0.37793]
[1727136823676,0.98698341,2646.3,2646.1,3.58573]
[1727136823967,0.98698341,2646.4,2646.2,2.65]
[1727136824173,0.98698341,2646.4,2646.3,4.1897]
[1727136824769,1.47852687,2646.4,2646.3,4.1897]
[1727136824976,2.85450687,2646.5,2646.3,4.1897]
[1727136825474,1.85641687,2646.4,2646.3,4.1897]
[1727136826275,1.47852687,2646.4,2646.3,4.1897]
[1727136826883,1.85641687,2646.4,2646.3,4.1897]
[1727136827473,2.04547661,2646.4,2646.3,4.1897]
[1727136828476,1.66758661,2646.4,2646.3,4.1897]
[1727136829285,0.18905974,2646.4,2646.3,4.1897]
[1727136829981,1.48302346,2646.4,2646.3,4.1897]
[1727136830188,1.67208238,2646.4,2646.3,4.1897]
[1727136830381,0.18905892,2646.4,2646.3,4.1897]
[1727136830891,0.56694892,2646.4,2646.3,4.1897]
[1727136832277,2.54195712,2646.4,2646.3,4.1897]
[1727136838694,0.56694892,2646.4,2646.3,4.1897]
[1727136839394,2.05088494,2646.4,2646.3,4.1897]
[1727136839584,0.18905892,2646.4,2646.3,4.5676]
[1727136839791,2.95366025,2646.7,2646.3,4.5676]
[1727136839792,1.48376686,2646.7,2646.3,13.9681]
[1727136840098,0.9891779,2646.6,2646.5,0.37787]
[1727136840286,0.9891779,2646.6,2646.5,7.22027]
[1727136840992,0.9891779,2646.6,2646.4,3.2078]
[1727136841192,0.37789,2646.4,2646.3,4.1897]
[1727136841997,1.3670679,2646.4,2646.3,4.1897]
[1727136843487,1.48376686,2646.5,2646.3,4.1897]
[1727136843795,1.67282251,2646.5,2646.3,4.1897]
[1727136844493,1.86165686,2646.4,2646.3,4.1897]
[1727136844799,2.05071278,2646.4,2646.3,4.1897]
[1727136846601,2.15741278,2646.4,2646.3,4.1897]
[1727136847697,0.67364592,2646.4,2646.3,4.1897]
[1727136847898,0.67365093,2646.4,2646.3,4.1897]
[1727136848102,1.96858838,2646.4,2646.3,4.1897]
[1727136848303,2.15764931,2646.4,2646.3,4.1897]
[1727136849295,2.15764931,2646.4,2645.9,6.0938]
[1727136849296,0.37793,2646.1,2645.9,6.0938]
[1727136849502,1.36733478,2646.1,2645.9,6.99725]
[1727136849699,0.37794,2646.0,2645.9,6.6193]
[1727136850402,0.98940478,2646.0,2645.9,9.8193]
[1727136850798,0.98940478,2646.0,2645.9,3.2078]
[1727136850799,1.86204717,2646.0,2645.9,3.2078]
[1727136851100,0.18908256,2646.0,2645.9,3.2078]
[1727136851896,0.56702256,2646.0,2645.9,3.2078]
[1727136852102,1.86240528,2646.0,2645.9,3.2078]
[1727136852403,2.05148784,2646.0,2645.9,3.2078]
[1727136852603,0.56702703,2646.0,2645.9,3.2078]
[1727136853597,2.54203523,2646.0,2645.9,3.2078]
[1727136855908,2.54203663,2646.0,2645.9,3.2078]
[1727136857500,2.3529482,2646.0,2645.9,3.2078]
[1727136857702,2.54203568,2646.0,2645.9,3.2078]
[1727136864514,2.54203568,2646.0,2645.8,0.37797]
[1727136864712,0.18908748,2645.9,2645.8,3.58577]
[1727136864918,0.37799,2645.7,2645.6,0.5404]
[1727136865216,1.32301,2645.6,2645.5,5.16232114]
[1727136865420,9.85351,2645.6,2645.5,5.16232114]
[1727136865716,11.67656563,2645.6,2645.5,5.16232114]
[1727136866115,10.73155563,2645.6,2645.5,5.16232114]
[1727136866509,0.37806,2645.2,2644.9,6.0377]
[1727136866705,1.50267378,2645.1,2644.9,3.5288]
[1727136867003,1.50267378,2645.1,2644.9,4.0259]
[1727136867610,0.5125,2645.1,2644.9,4.0259]
[1727136867827,1.88074378,2645.1,2644.9,3.1471]
[1727136868018,1.50267378,2645.1,2644.9,3.1471]
[1727136868213,0.5125,2645.1,2644.9,3.1471]
[1727136868420,1.50267378,2645.1,2644.9,3.1471]
[1727136869120,0.5125,2645.1,2644.9,3.1471]
[1727136869818,0.5125,2645.1,2644.9,3.5252]
[1727136870017,0.5125,2645.1,2645.0,0.37809]
[1727136870219,0.99017378,2645.2,2645.0,0.37809]
[1727136870418,0.99017378,2645.2,2645.1,0.37807]
[1727136870616,0.99017378,2645.3,2645.1,6.23587]
[1727136870818,0.99017378,2645.4,2645.3,0.37804]
[1727136871030,0.99017378,2645.4,2645.3,3.57804]
[1727136871318,1.53457378,2645.5,2645.3,3.57804]
[1727136871518,2.02966067,2645.5,2645.4,3.1705]
[1727136872030,0.98866853,2645.5,2645.4,3.54853]
[1727136872323,0.98866853,2645.5,2645.4,2.12853]
[1727136872916,0.98866853,2645.6,2645.5,0.37801]
[1727136873222,0.98846052,2645.7,2645.6,0.378]
[1727136873419,0.98846052,2645.7,2645.6,4.8158]
[1727136873614,0.98846052,2645.7,2645.6,5.3259]
[1727136874316,0.98846052,2645.8,2645.7,0.37799]
[1727136875214,0.98846052,2645.9,2645.8,0.37797]
[1727136877917,0.98846052,2645.9,2645.7,0.37798]
[1727136878221,1.36642052,2645.9,2645.7,0.37798]
[1727136878935,0.98846052,2645.9,2645.8,0.37797]
[1727136879227,0.98846359,2645.9,2645.8,0.37797]
[1727136880127,1.86320067,2646.0,2645.8,0.37797]
[1727136880328,1.86320067,2646.0,2645.9,0.4848]
[1727136880632,2.05229121,2646.0,2645.9,0.4848]
[1727136881528,0.37796,2645.9,2645.7,0.37798]
[1727136881821,1.36653337,2645.8,2645.6,4.09589]
[1727136882022,0.37799,2645.7,2645.6,4.09589]
[1727136883017,0.37799,2645.7,2645.6,3.7179]
[1727136884429,0.87849,2645.7,2645.6,3.7179]
[1727136885131,0.5005,2645.7,2645.6,3.7179]
[1727136885332,1.36653337,2645.8,2645.6,6.7459]
[1727136885333,0.98855337,2645.8,2645.6,6.7459]
[1727136885531,1.36652337,2645.8,2645.6,6.7459]
[1727136885935,0.98855337,2645.8,2645.7,0.37799]
[1727136886125,0.98855337,2645.9,2645.8,0.37797]
[1727136887135,1.98333005,2646.0,2645.9,0.37796]
[1727136887331,2.17241655,2646.0,2645.9,0.37796]
[1727136888325,2.55035655,2646.0,2645.9,0.37796]
[1727136888528,1.0675265,2646.0,2645.9,0.37796]
[1727136888724,1.98410904,2646.0,2645.9,0.37796]
[1727136888927,2.1731956,2646.0,2645.9,0.37796]
[1727136889128,0.6895865,2646.0,2645.9,0.37796]
[1727136891131,2.66993406,2646.0,2645.9,0.37796]
[1727136891333,2.66993406,2646.0,2645.9,3.02796]
[1727136891537,0.6895865,2646.0,2645.9,6.23576]
[1727136891738,1.98470105,2646.0,2645.9,6.23576]
[1727136891932,2.17378755,2646.0,2645.9,6.23576]
[1727136892129,2.17377702,2646.0,2645.9,6.23576]
[1727136894335,0.98980237,2646.1,2646.0,0.37794]
[1727136894637,0.98980237,2646.3,2646.0,11.29631282]
[1727136894827,0.98980237,2646.3,2646.2,4.4378]
[1727136895027,0.98980237,2646.3,2646.2,8.01571]
[1727136895225,0.98980237,2646.3,2646.2,11.79491]
[1727136895628,1.48420105,2646.5,2646.4,0.37789]
[1727136895832,1.67324322,2646.5,2646.4,1.60789]
[1727136896039,1.48420105,2646.5,2646.4,1.60789]
[1727136896541,1.48420105,2646.5,2646.4,0.37789]
[1727136896836,1.67324322,2646.5,2646.4,0.37789]
[1727136897237,1.48420105,2646.5,2646.4,0.37789]
[1727136898732,0.37789,2646.4,2646.2,6.4078]
[1727136898937,0.37789,2646.4,2646.2,6.78571]
[1727136898938,1.51747216,2646.3,2646.2,6.78571]
[1727136899139,2.02147216,2646.3,2646.2,6.78571]
[1727136899538,2.02147216,2646.3,2646.2,6.4078]
[1727136899734,2.39937216,2646.3,2646.2,3.2078]
[1727136900135,1.4103,2646.3,2646.2,3.2078]
[1727136900337,1.0324,2646.3,2646.2,3.2078]
[1727136900634,2.02147216,2646.3,2646.2,3.2078]
[1727136900833,2.39937216,2646.3,2646.2,3.2078]
[1727136901429,2.02147216,2646.3,2646.2,3.58571]
[1727136902338,1.4103,2646.3,2646.2,3.2078]
[1727136902536,1.4103,2646.3,2646.2,3.58571]
[1727136903036,1.4103,2646.3,2646.2,3.2078]
[1727136903235,7.23996824,2646.3,2645.9,5.8578]
[1727136903437,1.36658073,2646.1,2645.9,5.8578]
[1727136903646,1.36658073,2646.1,2645.9,6.23576]
[1727136903647,0.98865073,2646.0,2645.9,6.23576]
[1727136903832,0.98865073,2646.0,2645.9,9.43576]
[1727136904031,0.98865073,2646.1,2646.0,0.37794]
[1727136904241,1.36658073,2646.1,2645.9,9.43575]
[1727136904443,0.98865073,2646.1,2646.0,0.37794]
[1727136905352,1.36658073,2646.1,2645.9,9.43575]
[1727136905939,0.98865073,2646.1,2646.0,0.37794]
[1727136906841,1.86152824,2646.2,2646.1,0.37793]
[1727136906842,0.98865073,2646.2,2646.1,0.37793]
[1727136907151,1.49265073,2646.3,2646.2,0.37791]
[1727136907436,0.504,2646.3,2646.2,4.08751]
[1727136907636,0.504,2646.3,2646.2,4.59531]
[1727136909139,0.6107,2646.3,2646.2,4.59531]
[1727136910339,0.1067,2646.3,2646.2,9.3193]
[1727136910739,0.1067,2646.3,2646.2,8.37451]
[1727136910941,0.1067,2646.3,2646.2,11.22851]
[1727136916145,0.1067,2646.3,2646.2,3.2078]
[1727136916352,1.09535073,2646.3,2646.2,3.58571]
[1727136916647,1.09535073,2646.3,2646.2,3.2078]
[1727136916648,1.97005073,2646.3,2646.2,3.2078]
[1727136916856,1.59215073,2646.3,2646.2,0.37791]
[1727136917550,1.09535073,2646.3,2646.2,0.37791]
[1727136917750,0.1067,2646.3,2646.2,4.63071]
[1727136918348,0.1067,2646.3,2646.2,5.5755]
[1727136918542,0.1067,2646.3,2646.2,4.63071]
[1727136921543,0.98865073,2646.5,2646.4,0.37789]
[1727136921742,0.98865073,2646.5,2646.4,6.23569]
[1727136922145,0.98865073,2646.5,2646.4,6.74049]
[1727136923557,0.98865073,2646.7,2646.4,16.51889]
[1727136923855,0.98865073,2646.8,2646.7,0.37784]
[1727136924349,0.98865073,2646.8,2646.7,0.86264]
[1727136925143,4.19645073,2646.9,2646.8,0.37783]
[1727136925351,4.69140824,2646.9,2646.8,5.88083]
[1727136925545,4.69140824,2646.9,2646.8,2.65]
[1727136925953,5.06921824,2646.9,2646.4,4.1934]
[1727136926159,0.98869417,2646.7,2646.6,2.65]
[1727136926852,2.84624824,2646.7,2646.6,2.65]
[1727136927053,2.46840824,2646.7,2646.6,2.65]
[1727136927859,0.9848,2646.7,2646.6,2.65]
[1727136928554,1.36264,2646.7,2646.6,2.65]
[1727136928958,0.9848,2646.7,2646.6,2.65]
[1727136929159,2.84624824,2646.7,2646.6,2.65]
[1727136929750,2.46840824,2646.7,2646.6,2.65]
[1727136933260,2.65743853,2646.7,2646.6,2.65]
[1727136933459,2.65743853,2646.7,2646.6,3.02786]
[1727136933460,2.17903853,2646.7,2646.6,3.02786]
[1727136933652,1.48360824,2646.7,2646.6,3.02786]
[1727136933854,5.18814756,2646.9,2646.6,3.02786]
[1727136933855,1.48360824,2646.8,2646.7,0.37784]
[1727136934055,0.98926261,2646.8,2646.7,1.81695]
[1727136934364,1.98034756,2647.2,2647.0,0.3778]
[1727136934565,0.4841,2647.3,2647.1,5.9799]
[1727136934867,1.98034756,2647.6,2647.1,9.7575]
[1727136935071,2.49464756,2647.8,2647.5,6.23553]
[1727136935257,2.49464756,2647.8,2647.7,2.65]
[1727136935258,0.5143,2647.8,2647.7,2.65]
[1727136935452,0.70325682,2647.8,2647.7,2.65]
[1727136935864,1.97685935,2648.2,2648.1,0.37764]
[1727136936075,2.28543446,2648.7,2648.6,0.37757]
[1727136936362,0.5143,2649.2,2648.6,15.686]
[1727136936569,0.5143,2649.2,2649.1,2.65]
[1727136936955,0.37751,2649.0,2648.9,5.8578]
[1727136937166,4.2887,2649.2,2648.9,5.8578]
[1727136937167,0.89179,2649.2,2648.9,5.8578]
[1727136937365,0.5143,2649.2,2649.1,2.65]
[1727136937559,0.4753,2649.4,2649.1,2.65]
[1727136937760,0.4753,2649.4,2649.3,2.65]
[1727136937961,0.499,2649.7,2649.3,5.8578]
[1727136938167,0.37744,2649.6,2649.3,5.8578]
[1727136938861,0.37744,2649.5,2649.3,5.8578]
[1727136939165,0.499,2649.7,2649.3,5.8578]
[1727136939364,0.37746,2649.4,2649.3,5.8578]
[1727136939555,0.37746,2649.4,2649.3,3.2078]
[1727136939754,0.37746,2649.4,2649.0,3.2078]
[1727136939755,9.7744,2649.4,2649.0,3.2078]
[1727136939960,4.65035,2649.7,2649.0,3.2078]
[1727136939961,0.37745,2649.5,2649.1,2.65]
[1727136940169,0.37746,2649.4,2649.1,2.65]
[1727136940374,3.7068,2649.7,2649.3,2.65]
[1727136940677,3.7068,2649.7,2649.6,2.65]
[1727136940678,0.87642,2649.7,2649.6,2.65]